Workbook

Sheet 地铁
A1: 城市 | B1: 线路 | C1: 站点 | D1: 级别 | E1: 媒体形式 | F1: 媒体名称 | G1: 起投周期(周) | H1: 投放周期(周) | I1: 购买数量 | J1: 购买数量单位 | K1: 频次 | L1: 刊例价(元) | M1: 刊例价单位 | N1: 实际购买刊例价(元) | O1: 实际购买刊例价单位 | P1: 短期附加费 | Q1: 创意附加费 | R1: 折扣 | S1: 媒体总净价(元) | T1: 媒体总净价单位 | U1: 常规制作费(元/套/次) | V1: 创意制作费(元/套/次) | W1: 总制作费(元) | X1: 总净价(元) | Y1: 总净价单位 | Z1: 底价 | AA1: 底价总 | AB1: 制作费 | AC1: 媒体费总价 | AD1: 供应商 | AE1: 单日覆盖人次(客流) | AF1: 发布期内总曝光人次(客流) | AG1: 同站内同类媒体数量或列车总量 | AH1: SOV | AI1: CPM(元) | AJ1: 覆盖热区 | AK1: 备注 | AL1: 对应比稿
A2: 北京 | B2: 14号线（换乘15号线） | C2: 望京 | D2: S | E2: 大型媒体 | F2: 璀璨光域 （4x墙面超大灯箱+2x墙面电子屏+8侧x包柱电子屏+8侧x包柱灯箱） | G2: 4 | H2: 4 | I2: 1 | J2: 套 | K2: 固定 | L2: 1,880,000 | M2: 元/套/4周 | N2: =L2/G2*H2*(1+P2) -> 1,880,000 | O2: 元/套/4周 | P2: 0% | Q2: 0% | R2: 65% | S2: =N2*R2 -> 1,222,000 | T2: 元/套/4周 | U2: 43,000 | V2: 0 | W2: =(U2+V2)*I2 -> 43,000 | X2: =W2+S2 -> 1,265,000 | Y2: 元/套/4周 | Z2: 45.00% | AA2: =N2*Z2*I2 -> 846,000 | AB2: =W2 -> 43,000 | AC2: =AA2+AB2 -> 889,000 | AD2: 三木 | AE2: 450,000 | AF2: =AE2*7*H2 -> 12,600,000 | AG2: 1 | AH2: =I2/AG2 -> 100% | AI2: =X2/AF2*1000 -> 100.40 | AJ2: 望京 | AL2: 非比稿
A3: 北京 | B3: 14号线（换乘1号线） | C3: 大望路 | D3: S | E3: 大型媒体 | F3: 品牌通道2 | G3: 4 | H3: 4 | I3: 1 | J3: 套 | K3: 固定 | L3: 488,000 | M3: 元/套/4周 | N3: =L3/G3*H3*(1+P3) -> 488,000 | O3: 元/套/4周 | P3: 0% | Q3: 0% | R3: 65% | S3: =N3*R3 -> 317,200 | T3: 元/套/4周 | U3: 25,000 | V3: 0 | W3: 25,000 | X3: =W3+S3 -> 342,200 | Y3: 元/套/4周 | Z3: 45.00% | AA3: =N3*Z3*I3 -> 219,600 | AB3: =W3 -> 25,000 | AC3: =AA3+AB3 -> 244,600 | AD3: 三木 | AE3: 610,500 | AF3: =AE3*7*H3 -> 17,094,000 | AG3: 1 | AH3: =I3/AG3 -> 100% | AI3: =X3/AF3*1000 -> 20.02 | AJ3: SKP、光华路、华贸、金地中心、万达 | AL3: 非比稿
A4: 北京 | B4: 昌平线（换乘13号线） | C4: 西二旗 | D4: S | E4: 大型媒体 | F4: 品牌区域2 （站厅梯侧贴：A口出站侧+B口出站侧） | G4: 4 | H4: 4 | I4: 1 | J4: 套 | K4: 固定 | L4: 688,000 | M4: 元/套/4周 | N4: 688,000 | O4: 元/套/4周 | P4: 0% | Q4: 0% | R4: 65% | S4: 447,200 | T4: 元/套/4周 | U4: 45,000 | V4: 0 | W4: 45,000 | X4: 492,200 | Y4: 元/套/4周 | Z4: 45.00% | AA4: 309,600 | AB4: 45,000 | AC4: 354,600 | AD4: 三木 | AE4: 450,000 | AF4: 12,600,000 | AG4: 1 | AH4: =I4/AG4 -> 100% | AI4: =X4/AF4*1000 -> 39.06 | AJ4: 西二旗、元中心、后厂村等 | AL4: 非比稿
A5: 上海 | B5: L1/L9/L11 | C5: 徐家汇 | D5: S | E5: 灯箱、墙贴 包柱 | F5: 徐家汇 品牌站厅 | G5: 4 | H5: 4 | I5: 1 | J5: 套 | K5: 固定 | L5: 1,580,000 | M5: 元/套/4周 | N5: 1,580,000 | O5: 元/套/4周 | P5: 0% | Q5: 0% | R5: 65% | S5: 1,027,000 | T5: 元/套/4周 | U5: 95,600 | V5: 0 | W5: 95,600 | X5: 1,122,600 | Y5: 元/套/4周 | Z5: 40.00% | AA5: 632,000 | AB5: 95,600 | AC5: 727,600 | AD5: 上海德高 | AE5: =224000*24 -> 5,376,000 | AF5: 150,528,000 | AG5: 1 | AH5: =I5/AG5 -> 100% | AI5: =X5/AF5*1000 -> 7.46 | AJ5: 徐家汇 | AL5: 非比稿
A6: 上海 | B6: L1/L9/L11 | C6: 徐家汇 | D6: S | E6: 灯箱、墙贴 包柱 | F6: 徐家汇 品牌换乘通道B区 | G6: 4 | H6: 4 | I6: 1 | J6: 套 | K6: 固定 | L6: 1,980,000 | M6: 元/套/4周 | N6: 1,980,000 | O6: 元/套/4周 | P6: 0% | Q6: 0% | R6: 65% | S6: 1,287,000 | T6: 元/套/4周 | U6: 82,300 | V6: 0 | W6: 82,300 | X6: 1,369,300 | Y6: 元/套/4周 | Z6: 40.00% | AA6: 792,000 | AB6: 82,300 | AC6: 874,300 | AD6: 上海德高 | AE6: =240000*23 -> 5,520,000 | AF6: 154,560,000 | AG6: 2 | AH6: =I6/AG6 -> 50% | AI6: 8.86 | AJ6: 徐家汇 | AL6: 非比稿
A7: 上海 | B7: L01/L09/L11换乘 | C7: 徐家汇 （2号口） | D7: A++ | E7: 地铁出入口玻璃贴 | F7: 地铁出入口玻璃贴 | G7: 4 | H7: 4 | I7: 1 | J7: 套 | K7: 固定 | L7: 298,000 | M7: 元/套/4周 | N7: 298,000 | O7: 元/套/4周 | P7: 0% | Q7: 0% | R7: 65% | S7: 193,700 | T7: 元/套/4周 | U7: 2,600 | V7: 0 | W7: 2,600 | X7: 196,300 | Y7: 元/套/4周 | Z7: 6.71% | AA7: 19,996 | AB7: 2,600 | AC7: 22,596 | AD7: 新云 | AE7: 20,857 | AF7: 583,996 | AG7: 4 | AH7: 25% | AI7: 336.13 | AJ7: 徐家汇|五芳斋(汇联商厦天钥桥路店) 徐家汇|星巴克臻选咖啡·焙烤坊(港汇恒隆广场店)、 字节跳动、东方财富、蚂蚁金服 | AK7: 制作费为预估制作费，最终制作费以实际为准 | AL7: 非比稿
A8: 上海 | B8: L01/L09/L11换乘 | C8: 徐家汇 （9号口） | D8: A++ | E8: 地铁出入口玻璃贴 | F8: 地铁出入口玻璃贴 | G8: 4 | H8: 4 | I8: 1 | J8: 套 | K8: 固定 | L8: 298,000 | M8: 元/套/4周 | N8: 298,000 | O8: 元/套/4周 | P8: 0% | Q8: 0% | R8: 65% | S8: 193,700 | T8: 元/套/4周 | U8: 4,100 | V8: 0 | W8: 4,100 | X8: 197,800 | Y8: 元/套/4周 | Z8: 6.71% | AA8: 19,996 | AB8: 4,100 | AC8: 24,096 | AD8: 新云 | AE8: 24,462 | AF8: 684,936 | AG8: 4 | AH8: 25% | AI8: 288.79 | AJ8: 徐家汇|五芳斋(汇联商厦天钥桥路店) 徐家汇|星巴克臻选咖啡·焙烤坊(港汇恒隆广场店)、 字节跳动、东方财富、蚂蚁金服 | AK8: 制作费为预估制作费，最终制作费以实际为准 | AL8: 非比稿
A9: 广州 | B9: 1&3号线 | C9: 体育西路站 | D9: S | E9: 大型媒体 | F9: 天环主题通道（东区+西区） | G9: 4 | H9: 4 | I9: 1 | J9: 套 | K9: 固定 | L9: 1,080,000 | M9: 元/套/4周 | N9: 1,080,000 | O9: 元/套/4周 | P9: 0% | Q9: 0% | R9: 65% | S9: 702,000 | T9: 元/套/4周 | U9: 57,000 | V9: 0 | W9: 57,000 | X9: 759,000 | Y9: 元/套/4周 | Z9: 35.00% | AA9: 378,000 | AB9: 57,000 | AC9: 435,000 | AD9: 广铁 | AE9: 650,382 | AF9: 18,210,696 | AG9: 1 | AH9: 100% | AI9: 41.68 | AJ9: 体育西地铁站 天环广场 | AL9: 非比稿
A10: 广州 | B10: 3&5号线 | C10: 珠江新城 | D10: S | E10: 大型媒体 | F10: 换乘B区 | G10: 4 | H10: 4 | I10: 1 | J10: 组 | K10: 固定 | L10: 1,480,000 | M10: 元/套/4周 | N10: 1,480,000 | O10: 元/套/4周 | P10: 0% | Q10: 0% | R10: 65% | S10: 962,000 | T10: 元/套/4周 | U10: 72,250 | V10: 0 | W10: 72,250 | X10: 1,034,250 | Y10: 元/套/4周 | Z10: 35.00% | AA10: 518,000 | AB10: 72,250 | AC10: 590,250 | AD10: 广铁 | AE10: 637,856 | AF10: 17,859,968 | AG10: 1 | AH10: 100% | AI10: 57.91 | AJ10: 珠江新城地铁站 周大福金融中心 | AL10: 非比稿
A11: 深圳 | B11: 2(8)/11/13号线换乘 | C11: 后海 | D11: S | E11: 包柱 | F11: 品牌站厅2区：15×方柱（共213㎡） | G11: 4 | H11: 4 | I11: 1 | J11: 组 | K11: 固定 | L11: 788,000 | M11: 元/套/4周 | N11: 788,000 | O11: 元/套/4周 | P11: 0% | Q11: 0% | R11: 65% | S11: 512,200 | T11: 元/套/4周 | U11: 43,000 | V11: 0 | W11: 43,000 | X11: 555,200 | Y11: 元/套/4周 | Z11: 40.00% | AA11: 315,200 | AB11: 43,000 | AC11: 358,200 | AD11: 雅铁 | AE11: 220,000 | AF11: 6,160,000 | AG11: 3 | AH11: 33% | AI11: 90.13 | AJ11: 后海 | AL11: 非比稿
A12: 深圳 | B12: 2(8)/11/13号线换乘 | C12: 后海 | D12: S | E12: 包柱 | F12: 品牌站厅3区：10×方柱（共141m²） | G12: 4 | H12: 4 | I12: 1 | J12: 组 | K12: 固定 | L12: 788,000 | M12: 元/套/4周 | N12: 788,000 | O12: 元/套/4周 | P12: 0% | Q12: 0% | R12: 65.0% | S12: 512,200 | T12: 元/套/4周 | U12: 29,000 | V12: 0 | W12: 29,000 | X12: 541,200 | Y12: 元/套/4周 | Z12: 40.00% | AA12: 315,200 | AB12: 29,000 | AC12: 344,200 | AD12: 雅铁 | AE12: 220,000 | AF12: 6,160,000 | AG12: 3 | AH12: 33% | AI12: 87.86 | AJ12: 后海 | AL12: 非比稿
A13: 深圳 | B13: 4号线换乘1号线 | C13: 会展中心 | D13: S | E13: 大型媒体 | F13: 换乘V型区：1×横版超级灯箱+6×竖版超级灯箱+2×圆柱+3×12封灯箱+墙贴(共181㎡) | G13: 4 | H13: 4 | I13: 1 | J13: 组 | K13: 固定 | L13: 780,000 | M13: 元/套/4周 | N13: 780,000 | O13: 元/套/4周 | P13: 0% | Q13: 0% | R13: 65% | S13: 507,000 | T13: 元/套/4周 | U13: 53,000 | V13: 0 | W13: 53,000 | X13: 560,000 | Y13: 元/套/4周 | Z13: 40.00% | AA13: 312,000 | AB13: 53,000 | AC13: 365,000 | AD13: 雅铁 | AE13: 320,000 | AF13: 8,960,000 | AG13: 2 | AH13: 50% | AI13: 62.50 | AJ13: 会展中心 | AL13: 非比稿
A14: 深圳 | B14: 1&4号线 | C14: 会展中心 | D14: S | E14: 包柱+吊旗+玻璃贴 | F14: 主题站厅 | G14: 4 | H14: 4 | I14: 1 | J14: 套 | K14: 固定 | L14: 1,380,000 | M14: 元/套/4周 | N14: 1,380,000 | O14: 元/套/4周 | P14: 0% | Q14: 0% | R14: 65% | S14: 897,000 | T14: 元/套/4周 | U14: 80,000 | V14: 0 | W14: 80,000 | X14: 977,000 | Y14: 元/套/4周 | Z14: 55.00% | AA14: 759,000 | AB14: 80,000 | AC14: 839,000 | AD14: 深报 | AE14: 609,300 | AF14: 17,060,400 | AG14: 1 | AH14: 100% | AI14: 57.27 | AJ14: 会展中心 | AL14: 非比稿
A15: 深圳 | B15: 1&4号线 | C15: 会展中心 | D15: S | E15: 卡布灯箱K01 （约50m²） | F15: 站厅卡布灯箱K01 | G15: 4 | H15: 2 | I15: 1 | J15: 套 | K15: 固定 | L15: 600,000 | M15: 元/套/4周 | N15: 345,000 | O15: 元/套/2周 | P15: 15% | Q15: 0% | R15: 65% | S15: 224,250 | T15: 元/套/2周 | U15: 20,000 | V15: 0 | W15: 20,000 | X15: 244,250 | Y15: 元/套/2周 | Z15: 55.00% | AA15: 189,750 | AB15: 20,000 | AC15: 209,750 | AD15: 深报 | AE15: 609,300 | AF15: 8,530,200 | AG15: 4 | AH15: 25% | AI15: 28.63 | AJ15: 会展中心 | AL15: 非比稿
A16: 深圳 | B16: 2&11&13号线 | C16: 后海站 | D16: S | E16: 6个12封灯箱+墙贴 | F16: 换乘通道W2单 | G16: 4 | H16: 4 | I16: 1 | J16: 套 | K16: 固定 | L16: 880,000 | M16: 元/套/4周 | N16: 880,000 | O16: 元/套/4周 | P16: 0% | Q16: 0% | R16: 65% | S16: 572,000 | T16: 元/套/4周 | U16: 93,200 | V16: 0 | W16: 93,200 | X16: 665,200 | Y16: 元/套/4周 | Z16: 55.00% | AA16: 484,000 | AB16: 93,200 | AC16: 577,200 | AD16: 深报 | AE16: 406,900 | AF16: 11,393,200 | AG16: 2 | AH16: 50% | AI16: 58.39 | AJ16: 后海 | AL16: 非比稿
A17: 深圳 | B17: 2&11&13号线 | C17: 后海站 | D17: S | E17: 7个12封灯箱+墙贴 | F17: 品牌墙B | G17: 4 | H17: 4 | I17: 1 | J17: 套 | K17: 固定 | L17: 550,000 | M17: 元/套/4周 | N17: 550,000 | O17: 元/套/4周 | P17: 0% | Q17: 0% | R17: 65% | S17: 357,500 | T17: 元/套/4周 | U17: 47,700 | V17: 0 | W17: 47,700 | X17: 405,200 | Y17: 元/套/4周 | Z17: 55.00% | AA17: 302,500 | AB17: 47,700 | AC17: 350,200 | AD17: 深报 | AE17: 406900 | AF17: 11,393,200 | AG17: 2 | AH17: 50% | AI17: 35.57 | AJ17: 后海 | AL17: 非比稿
A18: 长沙 | B18: 2号线、5号线 | C18: 万家丽 | D18: S | E18: 大型媒体 | F18: 2/5号线品牌站厅 4根软膜灯箱包柱+横梁+2块下2号线站台灯箱梯眉 | G18: 4 | H18: 4 | I18: 1 | J18: 套 | K18: 固定 | L18: 888000 | M18: 元/套/4周 | N18: 888,000 | O18: 元/套/4周 | P18: 0 | Q18: 0 | R18: 65% | S18: 577,200 | T18: 元/套/4周 | U18: 40000 | V18: 0 | W18: 40,000 | X18: 617,200 | Y18: 元/套/4周 | Z18: 40.00% | AA18: 355,200 | AB18: 40,000 | AC18: 395,200 | AD18: 天闻 | AE18: 250,000 | AF18: 7,000,000 | AG18: 1 | AH18: 100% | AI18: 88.17 | AJ18: 万家丽商圈 | AL18: 非比稿
